[Event "4NCL Div 2 2024-25"]
[Site "England"]
[Date "2025.02.15"]
[Round "5.23"]
[White "Ackley, Peter J E"]
[Black "Wills, Tom"]
[Result "1/2-1/2"]
[Annotator "TA"]
[ECO "A11"]
[WhiteElo "1981"]
[BlackElo "1976"]
[PlyCount "60"]
[EventDate "2024.11.23"]
[EventType "team-tourn"]
[EventCountry "ENG"]
[SourceTitle "playchess.com"]
[Source "ChessBase"]
[SourceQuality "1"]
[TimeControl "40/6000+30:3000+30"]

{[%evp 9,60,10,12,-2,0,0,0,0,0,0,0,0,0,0,12,-15,0,0,0,0,0,0,0,-18,-27,-20,63,60,69,-24,0,-7,-2,-29,-18,-31,-6,-71,0,-11,0,0,189,174,286,170,176,187,220,79,90,-135,-128]} 1. c4 {[%emt 0:10:27]} c6 {[%emt 0:10:05]} 2. Nf3 {[%emt 0:00:41]} d5 {[%emt 0:00:05]} 3. e3 {[%emt 0:00:44]} Nf6 {[%emt 0:00:08]} 4. Nc3 {[%emt 0:01:11]} e6 {[%emt 0:00:15]} 5. b3 {[%emt 0:05:09]} Bd6 {[%emt 0:00:15]} 6. Qc2 {[%emt 0:01:25] A11: English Opening: 1...c6.} e5 {[%emt 0:08:14]} 7. cxd5 {[%emt 0:01:39]} cxd5 {[%emt 0:00:04]} 8. Nb5 {[%emt 0:01:13] The position is equal.} Nc6 {[%emt 0:00:58]} 9. Nxd6+ {[%emt 0:02:02]} Qxd6 {[%emt 0:02:55]} 10. Bb5 {[%emt 0:06:35]} O-O {[%emt 0:23:50]} 11. Bxc6 {[%emt 0:14:58]} bxc6 {[%emt 0:00:29]} 12. Bb2 {[%emt 0:01:12]} Re8 $146 {[%emt 0:06:24]} ({Predecessor:} 12... e4 13. Ne5 Bb7 14. Rc1 Rfe8 15. f4 exf3 16. Nxf3 Nd7 17. O-O f6 18. Nd4 Ne5 {1-0 Isajevsky,A (2403)-Hakobyan,A (2608) Titled Tuesday intern op 23rd May Early blitz 2023 (2)}) 13. Rc1 {[%emt 0:03:47]} Bb7 {[%emt 0:09:11]} 14. Qc5 {[%emt 0:15:39]} Qc7 {[%emt 0:08:45]} 15. O-O Rac8 {[%emt 0:03:37]} 16. d4 {[%emt 0:23:06]} Ba6 {[%emt 0:08:49]} 17. Rfe1 {[%emt 0:02:40][%cal Rd4e5]} (17. dxe5 Ne4 18. Qd4 Bxf1 19. Rxf1 Red8 $17) 17... Nd7 {[%emt 0:03:21]} ({Black should try} 17... e4 $1 $11 18. Ne5 Re6) 18. Qa3 $14 {[%emt 0:01:10] White is more active.} e4 {[%emt 0:00:54]} 19. Ne5 {[%emt 0:03:24][%csl Oc6] White attacks a weakness} (19. Qxa6 $14 exf3 20. gxf3) 19... Bb7 {[%emt 0:01:41]} 20. b4 {[%emt 0:05:43]} (20. Qxa7 Nb8 (20... Ra8 21. Rxc6 Qxc6 22. Nxc6 $16) 21. Ba3 f6 $17) 20... a6 {[%emt 0:05:32]} 21. f3 {[%emt 0:03:36]} exf3 {[%emt 0:02:10]} 22. gxf3 {[%emt 0:00:02]} Nb6 {[%emt 0:01:39][%cal Bd7b6,Bb6c4,Bc4b2][%mdl 32]} 23. Qa5 {[%emt 0:03:43] [#]} (23. Qc3 $11 {keeps the balance.}) 23... Re6 {[%emt 0:04:11]} (23... f6 $1 $17 {[%cal Rf6e5]} 24. Nd3 Nc4 25. Qxc7 Rxc7) 24. Rc2 {[%emt 0:01:30]} Qd8 {[%emt 0:04:15]} 25. Rg2 {[%emt 0:00:39]} Rxe5 $2 {[%emt 0:01:03]} 26. dxe5 $18 {[%emt 0:00:05][%cal Oe5e6]} Qh4 {[%emt 0:00:06]} (26... g6 $142 27. Bc3 Nc4) 27. Ree2 {[%emt 0:00:56]} (27. Bc3 $142 Nc4 28. Qc5) 27... Nc4 {[%emt 0:00:13] [#]} 28. Qc5 {[%emt 0:00:22] Rg4 is the strong threat.} Nxb2 {[%emt 0:00:08]} 29. Qb6 {[%emt 0:00:11]} (29. Rg4 $1 $18 {[%cal Rg4h4] is the precise move to win.} Qh6 30. Rxb2) 29... Ba8 $16 {[%emt 0:03:59] ...Nc4 is the strong threat.} 30. Rg4 {[%emt 0:00:11]} (30. Rxb2 $2 Qe1#) (30. Qxa6 $1 $16 {and life is bright.} Re8 31. Rxb2 Qe1+ 32. Qf1 Qxf1+ 33. Kxf1) 30... Nc4 {[%emt 0:01:09] Weighted Error Value: White=0.39/Black=0.29 (precise)   Loses game:     	---       	Black=1      Mistake:       	White=5     	Black=3      Inaccurate:     	White=2     	---        OK:         	White=11    	Black=11     Best:        	White=1     	Black=2} 1/2-1/2

[Event "4NCL Div 2 2024-25"]
[Site "England"]
[Date "2025.02.15"]
[Round "5.24"]
[White "Rich, Ben S"]
[Black "Sanada, Tetsuaki"]
[Result "1/2-1/2"]
[Annotator "TA"]
[ECO "A00"]
[WhiteElo "1875"]
[BlackElo "1991"]
[PlyCount "160"]
[EventDate "2024.11.23"]
[EventType "team-tourn"]
[EventCountry "ENG"]
[SourceTitle "playchess.com"]
[Source "ChessBase"]
[SourceQuality "1"]
[TimeControl "40/6000+30:3000+30"]

{[%evp 9,160,-16,-15,-31,-16,-33,-25,-53,-57,-64,-66,-74,-55,-91,-99,-85,-72,-141,-141,-127,-49,-85,-68,-81,-29,-81,-58,-55,-59,-62,-45,-68,-56,-63,-50,-43,-22,-55,0,0,0,0,8,0,0,-55,-32,-45,-20,-25,5,-16,0,-17,-22,-24,-24,-40,-18,-14,-20,-21,20,20,32,0,0,0,0,0,0,0,0,0,0,-27,-35,-39,-39,-58,-58,-58,-56,-56,-48,-60,-60,-97,-91,-86,-71,-97,-71,-97,-97,-97,-97,-97,-97,-97,-97,-97,-97,-97,-97,-97,-97,-97,-97,-97,-97,-97,-97,-97,-89,-89,-86,-90,-90,-97,-86,-86,-86,-86,-86,-86,-86,-86,-86,-86,-86,-86,-86,-86,-86,-86,-86,-86,-86,-86,-86,-86,-86,-86,-86,-86,-80,-93,0,-93,0,-95,0]} 1. a3 {[%emt 0:10:12]} d5 {[%emt 0:11:07]} 2. c4 {[%emt 0:00:48]} c6 {[%emt 0:00:20]} 3. d3 {[%emt 0:00:54]} (3. e3 g6 4. Nc3 Nf6 5. Nf3 Bg7 6. b3 O-O 7. Bb2 b6 8. Rc1 Bb7 9. Qc2 Nbd7 {0-1 Rich,B (1875)-Sanada,T (1961) Huddersfield 4NCL op 32nd 2025 (3)}) ({Predecessor:} 3. e3 Nf6 4. Nf3 Bf5 5. b4 e6 6. Bb2 h6 7. cxd5 exd5 8. Be2 Nbd7 9. O-O Bd6 {1-0 Nihal,S (2694)-Bardyk,A (2206) Titled Tuesday intern op 03rd Oct Late blitz 2023 (10)}) 3... g6 {[%emt 0:02:38]} 4. Qc2 {[%emt 0:03:07]} Bg7 {[%emt 0:00:40]} 5. e3 {[%emt 0:01:14]} Nf6 {[%emt 0:03:44]} 6. Nf3 {[%emt 0:00:14] A00: Irregular Openings.} O-O {[%emt 0:00:23]} 7. Bd2 {[%emt 0:02:39]} Re8 {[%emt 0:07:24]} 8. Bc3 {[%emt 0:00:33] Black has an edge.} dxc4 {[%emt 0:02:14]} 9. dxc4 {[%emt 0:00:46]} Bf5 {[%emt 0:01:23] Repels Bd3} 10. Qc1 {[%emt 0:03:36]} Nbd7 {[%emt 0:04:02]} 11. Be2 {[%emt 0:03:33]} Nc5 {[%emt 0:01:33]} 12. Nbd2 {[%emt 0:05:14] Against Nb3} Bd3 {[%emt 0:12:15]} 13. b4 {[%emt 0:11:00]} ({White should play} 13. Qd1) 13... Bxe2 $17 {[%emt 0:03:57]} 14. bxc5 {[%emt 0:01:30] [#]} Bd3 {[%emt 0:01:49]} (14... Bxf3 $1 $17 15. gxf3 Qd3) 15. Qb2 {[%emt 0:04:22][%cal Oa1d1]} b6 {[%emt 0:10:11]} 16. Rd1 {[%emt 0:07:14]} Qc7 {[%emt 0:06:14]} (16... Qd7 $17) 17. Ne5 {[%emt 0:06:51]} (17. Qb3 $11 {keeps the balance.} Bf5 (17... bxc5 $2 18. Bxf6 Bxf6 19. Qxd3 $18) 18. Qb2) 17... Bf5 {[%emt 0:01:48]} 18. cxb6 {[%emt 0:08:38]} axb6 {[%emt 0:00:43]} 19. O-O {[%emt 0:07:55]} Red8 {[%emt 0:10:35][%cal Od8d2] Black has strong rooks and is better} 20. h3 {[%emt 0:04:56]} c5 {[%emt 0:11:36]} 21. Nef3 {[%emt 0:05:09]} Bd3 {[%emt 0:11:10]} 22. Rfe1 {[%emt 0:00:09]} Qa7 {[%emt 0:00:08]} 23. Ra1 {[%emt 0:02:26]} Qa6 {[%emt 0:00:24]} (23... Qa4 $1 $15) 24. Ne5 {[%emt 0:05:34]} Ne4 {[%emt 0:00:30]} 25. Nxe4 {[%emt 0:00:36]} Bxe4 {[%emt 0:00:03] This pair of bishops is nice.} 26. f3 {[%emt 0:04:27]} Bb7 {[%emt 0:00:38]} 27. Ng4 {[%emt 0:02:16]} (27. Nxg6 $11 Bxc3 (27... hxg6 28. Bxg7 f6 29. Bh6 $16) 28. Nxe7+ Kf8 29. Qxc3 Kxe7 30. Qe5+ Kf8 31. Qh8+ Ke7 32. Qe5+) 27... f6 $15 {[%emt 0:00:15]} 28. Rec1 {[%emt 0:03:19]} Rd3 {[%emt 0:01:17][%cal Ob7c8]} (28... Qxc4 $2 29. Bxf6 (29. Qxb6 Qa6 $16) 29... Qf7 30. Bxg7 Qxg7 31. Qxb6 $18) 29. e4 Rad8 {[%emt 0:01:01][%cal Ob7c8]} ({Don't play} 29... Qxc4 30. Bxf6 $14 (30. Qxb6 Rxc3 31. Rxc3 Qxc3 $19)) 30. Nf2 {[%emt 0:00:58]} (30. a4 {looks sharper.} Rxc3 31. Qxc3 f5 32. Ne5) 30... R3d6 {[%emt 0:00:17]} 31. Qb5 {[%emt 0:01:13]} Qxb5 {[%emt 0:00:43]} 32. cxb5 {[%emt 0:00:01]} Bh6 {[%emt 0:00:11]} 33. Rd1 {[%emt 0:01:55]} Be3 {[%emt 0:00:25]} 34. Rxd6 {[%emt 0:00:11]} Rxd6 {[%emt 0:00:03]} 35. Kf1 {[%emt 0:00:14]} Bxf2 {[%emt 0:01:27]} 36. Kxf2 $11 {[%emt 0:00:05][%mdl 4096] Endgame KRB-KRB} Bc8 {[%emt 0:00:17]} 37. Ke2 {[%emt 0:00:16]} Be6 {[%emt 0:00:14]} 38. a4 {[%emt 0:00:57]} Bc4+ {[%emt 0:00:17]} 39. Ke1 {[%emt 0:00:13]} Kf7 {[%emt 0:03:54]} 40. Rc1 {[%emt 0:01:07][%cal Oc3f6]} Bd3 {[%emt 0:00:54]} 41. Rd1 {[%emt 0:52:29]} Ke6 {[%emt 0:50:17]} 42. Kf2 {[%emt 0:01:19]} Bc2 {[%emt 0:00:00][%csl LRa4,LRd1]} 43. Rxd6+ {[%emt 0:00:00]} Kxd6 $15 {[%emt 0:00:00] KB-KB} 44. e5+ {[%emt 0:00:00]} fxe5 {[%emt 0:00:00]} 45. a5 {[%emt 0:00:00]} bxa5 {[%emt 0:00:00]} 46. Bxa5 {[%emt 0:00:00]} e4 {[%emt 0:00:00]} 47. Ke3 {[%emt 0:00:00]} exf3 {[%emt 0:00:00]} 48. gxf3 {[%emt 0:00:00]} Ba4 {[%emt 0:00:00]} 49. b6 {[%emt 0:00:00] Black must now prevent b7.} Bc6 {[%emt 0:00:00]} 50. f4 {[%emt 0:00:00]} Bd5 {[%emt 0:00:00]} 51. h4 {[%emt 0:00:00]} Kc6 {[%emt 0:00:00]} 52. b7 {[%emt 0:00:00]} Kxb7 {[%emt 0:00:00]} 53. Bd8 {[%emt 0:00:00]} e6 {[%emt 0:00:00]} 54. Bf6 {[%emt 0:00:00]} Kc6 {[%emt 0:00:00]} 55. Be5 {[%emt 0:00:00]} Kb5 {[%emt 0:00:00]} 56. Kd3 {[%emt 0:00:00]} Bg2 {[%emt 0:00:00]} 57. Kc3 {[%emt 0:00:00]} Kc6 {[%emt 0:00:00]} 58. Kd2 {[%emt 0:00:00]} Kd5 {[%emt 0:00:00]} 59. Ke3 {[%emt 0:00:00]} Be4 {[%emt 0:00:00]} 60. Bf6 {[%emt 0:00:00]} Bf5 {[%emt 0:00:00]} 61. Be5 {[%emt 0:00:00]} c4 {[%emt 0:00:00]} 62. Bf6 {[%emt 0:00:00]} Kc6 {[%emt 0:00:00]} 63. Bc3 {[%emt 0:00:00]} Kc5 {[%emt 0:00:00]} 64. Ba5 {[%emt 0:00:00]} Kb5 {[%emt 0:00:28]} 65. Be1 {[%emt 0:00:00]} Ka4 {[%emt 0:00:16]} 66. Kd4 {[%emt 0:00:00]} Kb3 {[%emt 0:00:19]} 67. Ba5 {[%emt 0:00:00]} Bd3 {[%emt 0:00:27]} 68. Be1 {[%emt 0:00:00]} Kc2 {[%emt 0:00:51]} 69. Ba5 {[%emt 0:00:00]} Bf1 {[%emt 0:01:28]} 70. Bb4 {[%emt 0:00:19]} Kd1 {[%emt 0:03:31]} 71. Ke3 {[%emt 0:01:31]} Bg2 {[%emt 0:00:39]} 72. Ba5 {[%emt 0:00:28]} Kc2 {[%emt 0:01:16]} 73. Kd4 {[%emt 0:00:13]} Bd5 {[%emt 0:00:22]} 74. Bb4 {[%emt 0:00:29]} Kb3 {[%emt 0:01:19]} 75. Be1 {[%emt 0:00:18]} Bb7 {[%emt 0:02:37]} 76. Bd2 {[%emt 0:00:23]} Ba6 {[%emt 0:00:13]} 77. Be1 {[%emt 0:00:31]} Ka4 {[%emt 0:00:50]} 78. Kc5 {[%emt 0:00:56]} Kb3 {[%emt 0:00:14] ...c3 is the strong threat.} 79. Kd4 {[%emt 0:00:04]} Ka4 {[%emt 0:03:02]} 80. Kc5 $1 {[%emt 0:00:05] [#]} Kb3 {[%emt 0:00:11] Weighted Error Value: White=0.14 (very precise) /Black=0.10 (very precise)   Mistake:       	White=3     	Black=4      Inaccurate:     	White=9     	Black=2      OK:         	White=34    	Black=30     Best:        	White=2     	Black=2      Strong:       	White=1     	---} (80... Ka3 $1 $17 81. Kb6 Kb2 (81... Bc8 82. Kc5 $17) 82. Kxa6 c3) 1/2-1/2

[Event "4NCL Div 2 2024-25"]
[Site "England"]
[Date "2025.02.15"]
[Round "5.25"]
[White "Southcott-Moyers, Indy"]
[Black "Fava, Lorenzo"]
[Result "1/2-1/2"]
[Annotator "ChessBase"]
[ECO "D30"]
[WhiteElo "2174"]
[BlackElo "2269"]
[PlyCount "42"]
[EventDate "2024.11.23"]
[EventType "team-tourn"]
[EventCountry "ENG"]
[SourceTitle "playchess.com"]
[Source "ChessBase"]
[SourceQuality "1"]
[TimeControl "40/6000+30:3000+30"]

1. d4 {[%emt 0:10:02]} d5 {[%emt 0:10:12]} 2. c4 {[%emt 0:00:05]} c6 {[%emt 0:00:04]} 3. Nf3 {[%emt 0:00:20]} Nf6 {[%emt 0:00:23]} 4. e3 {[%emt 0:00:10]} e6 {[%emt 0:00:38]} 5. Nbd2 {[%emt 0:06:02]} Nbd7 {[%emt 0:00:52]} 6. b3 {[%emt 0:06:58]} Bd6 {[%emt 0:03:05]} 7. Bb2 {[%emt 0:00:18]} O-O {[%emt 0:02:30]} 8. Bd3 {[%emt 0:03:41]} b6 {[%emt 0:00:21]} 9. O-O {[%emt 0:02:29]} Bb7 {[%emt 0:00:41]} 10. e4 {[%emt 0:02:24]} dxe4 {[%emt 0:01:02]} 11. Nxe4 {[%emt 0:02:41]} Nxe4 {[%emt 0:06:27]} 12. Bxe4 {[%emt 0:00:06]} f5 {[%emt 0:01:11]} 13. Bc2 {[%emt 0:00:25]} Qc7 {[%emt 0:01:13]} 14. Qe2 {[%emt 0:07:33]} Rae8 {[%emt 0:02:30]} 15. Ne5 {[%emt 0:07:34]} c5 {[%emt 0:08:20]} 16. Rfe1 {[%emt 0:08:17]} Nxe5 {[%emt 0:41:11]} 17. dxe5 {[%emt 0:00:10]} Be7 {[%emt 0:00:01]} 18. Rad1 {[%emt 0:02:25]} Rd8 {[%emt 0:03:36]} 19. Rxd8 {[%emt 0:03:04]} Rxd8 {[%emt 0:00:07]} 20. Rd1 {[%emt 0:00:11]} Rxd1+ {[%emt 0:02:10]} 21. Qxd1 {[%emt 0:00:40]} Qd8 {[%emt 0:00:49]} 1/2-1/2

[Event "4NCL Div 2 2024-25"]
[Site "England"]
[Date "2025.02.15"]
[Round "5.26"]
[White "Dunn, Maxim"]
[Black "Rees, Ioan"]
[Result "0-1"]
[Annotator "ChessBase"]
[ECO "D11"]
[WhiteElo "1934"]
[BlackElo "2251"]
[PlyCount "82"]
[EventDate "2024.11.23"]
[EventType "team-tourn"]
[EventCountry "ENG"]
[SourceTitle "playchess.com"]
[Source "ChessBase"]
[SourceQuality "1"]
[TimeControl "40/6000+30:3000+30"]

1. Nf3 {[%emt 0:10:04]} d5 {[%emt 0:10:40]} 2. d4 {[%emt 0:00:07]} Nf6 {[%emt 0:00:14]} 3. c4 {[%emt 0:00:06]} c6 {[%emt 0:00:16]} 4. g3 {[%emt 0:00:29]} dxc4 {[%emt 0:01:39]} 5. Bg2 {[%emt 0:01:02]} g6 {[%emt 0:00:09]} 6. O-O {[%emt 0:06:13]} Bg7 {[%emt 0:01:08]} 7. Na3 {[%emt 0:02:00]} b5 {[%emt 0:11:48]} 8. Ne5 {[%emt 0:05:01]} Nd5 {[%emt 0:00:56]} 9. b3 {[%emt 0:10:34]} cxb3 {[%emt 0:23:25]} 10. axb3 {[%emt 0:03:05]} O-O {[%emt 0:03:39]} 11. Bb2 {[%emt 0:02:53]} Qb6 {[%emt 0:06:18]} 12. Rc1 {[%emt 0:06:43]} Bb7 {[%emt 0:05:09]} 13. e3 {[%emt 0:02:58]} a5 {[%emt 0:02:34]} 14. h4 {[%emt 0:11:19]} a4 {[%emt 0:02:55]} 15. h5 {[%emt 0:03:42]} Qd8 {[%emt 0:02:34]} 16. hxg6 {[%emt 0:05:07]} hxg6 {[%emt 0:00:09]} 17. Nb1 {[%emt 0:00:33]} Qd6 {[%emt 0:07:37]} 18. Nd2 {[%emt 0:03:41]} a3 {[%emt 0:00:23]} 19. Ba1 {[%emt 0:01:47]} Nf6 {[%emt 0:05:36]} 20. Qc2 {[%emt 0:05:00]} Na6 {[%emt 0:02:46]} 21. Nd3 {[%emt 0:01:57]} Nb4 {[%emt 0:01:56]} 22. Nxb4 {[%emt 0:03:26]} Qxb4 {[%emt 0:00:05]} 23. Nf3 {[%emt 0:02:30]} Nd7 {[%emt 0:00:17]} 24. Rfd1 {[%emt 0:02:20]} e6 {[%emt 0:02:55]} 25. Ne1 {[%emt 0:03:04]} Rfc8 {[%emt 0:00:36]} 26. Nd3 {[%emt 0:00:48]} Qe7 {[%emt 0:00:08]} 27. Qc3 {[%emt 0:07:07]} Ra7 {[%emt 0:00:58]} 28. Nc5 {[%emt 0:04:03]} Nxc5 {[%emt 0:01:47]} 29. Qxc5 {[%emt 0:00:09]} Qxc5 {[%emt 0:00:25]} 30. Rxc5 {[%emt 0:01:10]} Bf8 {[%emt 0:02:04]} 31. Rc2 {[%emt 0:00:10]} Ba8 {[%emt 0:08:05]} 32. Rdc1 {[%emt 0:00:31]} Ra6 {[%emt 0:00:23]} 33. Bf1 {[%emt 0:01:52]} Rb6 {[%emt 0:01:06]} 34. Bh3 {[%emt 0:03:23]} Rc7 {[%emt 0:01:36]} 35. Bg2 {[%emt 0:00:07]} Bd6 {[%emt 0:00:54]} 36. d5 {[%emt 0:01:59]} exd5 {[%emt 0:02:11]} 37. Bd4 {[%emt 0:01:15]} c5 {[%emt 0:01:30]} 38. Bxc5 {[%emt 0:00:01]} Bxc5 {[%emt 0:00:43]} 39. Rxc5 {[%emt 0:00:02]} Rxc5 {[%emt 0:00:32]} 40. Rxc5 {[%emt 0:00:01]} Rc6 {[%emt 0:01:22]} 41. Rxb5 {[%emt 0:22:13]} Ra6 {[%emt 0:20:28]} 0-1

[Event "4NCL Div 2 2024-25"]
[Site "England"]
[Date "2025.02.15"]
[Round "5.27"]
[White "Blackburn, Jonathan L B"]
[Black "Cole, James"]
[Result "1-0"]
[Annotator "TA"]
[ECO "D85"]
[WhiteElo "2197"]
[BlackElo "1974"]
[PlyCount "117"]
[EventDate "2024.11.23"]
[EventType "team-tourn"]
[EventCountry "ENG"]
[SourceTitle "playchess.com"]
[Source "ChessBase"]
[SourceQuality "1"]
[TimeControl "40/6000+30:3000+30"]

{[%evp 13,117,12,35,30,31,32,33,26,29,32,43,37,39,39,65,41,46,23,45,37,45,59,46,0,0,0,10,0,0,0,0,-20,-39,-29,-41,-48,-53,-264,-269,-252,-158,-187,-83,-76,-63,-54,-59,-66,-75,-149,-33,-25,-20,-8,89,0,129,131,270,247,408,381,335,432,479,459,581,440,368,361,518,507,515,0,377,487,391,248,471,422,451,437,813,798,729,713,984,704,891,958,843,690,1298,1244,2885,654,29977,29978,29988,29979,29989,29990,29993,29994,29994,29994]} 1. d4 {[%emt 0:10:03]} Nf6 {[%emt 0:10:05]} 2. c4 {[%emt 0:00:02]} g6 {[%emt 0:00:04]} 3. Nc3 {[%emt 0:00:03]} d5 {[%emt 0:00:04]} 4. cxd5 {[%emt 0:00:33]} Nxd5 {[%emt 0:00:04]} 5. e4 {[%emt 0:00:03]} Nxc3 {[%emt 0:00:05]} 6. bxc3 {[%emt 0:00:03]} Bg7 {[%emt 0:00:06]} 7. Qa4+ {[%emt 0:00:06]} Bd7 {[%emt 0:01:03]} 8. Qa3 {[%emt 0:00:14] D85: Exchange Grünfeld: Unusual White 7th moves and lines with 7 Nf3.} O-O {[%emt 0:04:32]} 9. Bg5 {[%emt 0:00:05]} Re8 {[%emt 0:01:25]} 10. Nf3 {[%emt 0:07:18] White is slightly better.} b6 {[%emt 0:14:53]} 11. Rd1 $146 {[%emt 0:04:06]} ({Predecessor:} 11. Be2 c5 12. O-O cxd4 13. cxd4 Bc6 14. Qe3 Nd7 15. Rac1 Bb7 16. Rfd1 Rc8 17. Bb5 {0-1 Cramling Bellon,A (2035)-Schut,L (2259) Titled Tuesday intern op 09th Mar blitz 2021 (2)}) 11... Bg4 {[%emt 0:04:18]} 12. Be2 {[%emt 0:05:19]} Qd6 {[%emt 0:00:49]} 13. Qb3 {[%emt 0:02:31][%cal Of3e5]} c5 {[%emt 0:05:04]} 14. e5 {[%emt 0:03:50]} Qc7 {[%emt 0:01:37]} 15. h3 {[%emt 0:07:45]} Bd7 {[%emt 0:03:46]} 16. O-O {[%emt 0:06:24]} Nc6 {[%emt 0:04:34]} 17. Qa3 {[%emt 0:05:37]} e6 {[%emt 0:05:26]} 18. Qc1 {[%emt 0:04:01]} (18. dxc5 Nxe5 19. Nxe5 Bxe5 $11) (18. Nh2 $14 {was preferable.}) 18... Ne7 $11 {[%emt 0:05:31]} 19. dxc5 {[%emt 0:04:00]} bxc5 {[%emt 0:01:47]} 20. c4 {[%emt 0:03:32]} Bc6 {[%emt 0:06:59]} 21. Bf6 {[%emt 0:05:39]} Nf5 {[%emt 0:03:30]} 22. g4 {[%emt 0:04:03]} Bxf3 {[%emt 0:01:59]} 23. Bxf3 {[%emt 0:02:55]} Nd4 {[%emt 0:00:10]} 24. Rxd4 {[%emt 0:11:36]} cxd4 {[%emt 0:00:17] NOTEXT-51077 Black (d4)} 25. c5 $2 {[%emt 0:05:19]} (25. Bxg7 $15 Kxg7 26. Bxa8 Rxa8 27. Qf4) 25... Rac8 $19 {[%emt 0:02:22]} 26. c6 {[%emt 0:00:07]} h6 {[%emt 0:03:54]} 27. Re1 {[%emt 0:08:49]} g5 {[%emt 0:02:30]} (27... Bxf6 $19 {and Black stays clearly on top.} 28. exf6 Qd8 29. Qxh6 Qxf6) 28. h4 $17 {[%emt 0:06:26]} Bxf6 {[%emt 0:01:08]} 29. exf6 {[%emt 0:00:05]} Qf4 {[%emt 0:01:27]} (29... gxh4 30. Qxh6) 30. Qxf4 {[%emt 0:00:50]} gxf4 $15 {[%emt 0:00:03][%mdl 4096] Endgame KRR-KRB} 31. g5 {[%emt 0:00:31]} ({White should play} 31. Kf1) 31... hxg5 {[%emt 0:04:58]} ({Black should try} 31... d3 $17 {aiming for ...Red8.} 32. Be4 Red8 33. gxh6 f3 (33... Kh8 34. f3 $15) 34. Bxf3 Rd4 (34... Kh7 35. Be4+ Kxh6 36. f3 $17)) 32. Re5 $1 {[%emt 0:00:33]} Kh8 {[%emt 0:02:40]} 33. Kf1 {[%emt 0:00:27]} Rg8 {[%emt 0:00:50]} (33... d3 $11 34. Rxg5 (34. hxg5 Red8 $17) 34... Red8 35. Rh5+ Kg8 36. Rg5+ Kh7 (36... Kf8 $2 37. h5 $18) 37. Be4+ Kh6) 34. Ke2 {[%emt 0:00:27] White is more active.} (34. hxg5 $16 d3 35. Ke1) 34... Kh7 {[%emt 0:02:57]} (34... gxh4 35. Rh5#) (34... d3+ $11 35. Kxd3 (35. Kd2 Rgd8 $11) 35... Rgd8+ (35... gxh4 36. Rh5#) 36. Ke2 gxh4) 35. hxg5 $16 {[%emt 0:00:35]} (35. Rxg5 Rxg5 36. hxg5 Kg6 $19) 35... Rgd8 {[%emt 0:00:23]} (35... d3+ $16 36. Kxd3 Rgd8+ 37. Kc3 Rd6) 36. Kd3 {[%emt 0:00:32]} Rd6 $2 {[%emt 0:01:02]} (36... Kg8 37. Rc5 Rd6) 37. Rc5 $18 {[%emt 0:00:53]} Rc7 {[%emt 0:00:34]} 38. a4 {[%emt 0:00:24][%cal Ba2a4,Ba4a5][%mdl 32]} Kg8 {[%emt 0:03:42]} 39. a5 {[%emt 0:00:30]} Kf8 {[%emt 0:00:59]} 40. Rc1 {[%emt 0:01:50]} Kg8 {[%emt 0:02:43]} 41. Be4 {[%emt 0:23:41]} Rd8 {[%emt 0:20:38]} (41... f3 {was worth a try.} 42. Bxf3 Rc8) 42. Rb1 {[%emt 0:01:04]} Rdc8 {[%emt 0:01:49]} 43. Rc1 {[%emt 0:07:42]} (43. Kxd4 Rxc6 44. Bxc6 Rxc6 $16) 43... Rd8 {[%emt 0:00:07]} 44. f3 {[%emt 0:01:01]} Rd6 {[%emt 0:02:48]} 45. Rc5 {[%emt 0:03:56]} a6 $2 {[%emt 0:07:35]} (45... Rc8 46. Rc1 (46. c7 Rd7 $17) 46... Rc7) 46. Rc1 {[%emt 0:03:54]} e5 {[%emt 0:01:03]} 47. Rc5 {[%emt 0:00:28]} Re6 {[%emt 0:00:10]} (47... Rc8 $142 48. Rxe5 Rdxc6) 48. Bd5 {[%emt 0:00:42]} Rd6 {[%emt 0:01:02] [#]} 49. Ke4 $1 {[%emt 0:01:00]} d3 {[%emt 0:01:56]} 50. Rc1 {[%emt 0:02:58]} d2 {[%emt 0:07:34]} 51. Rd1 {[%emt 0:00:07]} Rdxc6 {[%emt 0:01:36]} 52. Bxc6 {[%emt 0:00:10]} Rxc6 {[%emt 0:00:04]} 53. Rxd2 {[%emt 0:00:06][%cal Oe4f5] [#] Kf5! is the strong threat. KR-KR} ({Less strong is} 53. Kxe5 Kh7 $11) 53... Rc3 {[%emt 0:02:35]} 54. Rd6 {[%emt 0:01:35]} (54. Kf5 $142 Rc7 55. g6 (55. Kxe5 Rc4 $18) 55... fxg6+ 56. Kxg6 (56. Kxe5 Kf7 $11)) 54... Re3+ {[%emt 0:00:45]} 55. Kf5 {[%emt 0:00:03] White mates.} Rxf3 {[%emt 0:00:39]} 56. Rd8+ {[%emt 0:00:32]} Kh7 {[%emt 0:00:09]} 57. Rf8 {[%emt 0:00:06]} ({Weaker is} 57. Kxe5 Rc3 58. Kxf4 Rc5 $11) 57... Rg3 {[%emt 0:01:33]} 58. Rxf7+ {[%emt 0:00:07]} Kg8 {[%emt 0:00:05]} 59. g6 {[%emt 0:00:32] Quite a comeback for White.   Weighted Error Value: White=0.45/Black=0.65  Loses game:     	White=1     	---        Mistake:       	White=3     	Black=9      Inaccurate:     	---       	Black=2      OK:         	White=12    	Black=12     Best:        	White=4     	Black=1      Strong:       	White=1     	---} 1-0